[Event "December 19 Late 2023"]
[Site "https://www.chess.com"]
[Date "2023.12.19"]
[Round "4"]
[White "Maurizzi, Marc`Andria"]
[Black "Wartiovaara, Oliver"]
[Result "1/2-1/2"]
[Board "44"]
[TimeControl "180+1"]
[WhiteFideId "36083534"]
[BlackFideId "513024"]
[WhiteElo "2417"]
[BlackElo "2214"]
[WhiteTeam "FRA"]
[BlackTeam "FIN"]
[WhiteClock "0:00:39"]
[BlackClock "0:00:23"]

1. d4 {[%clk 0:03:00]}  Nf6 {[%clk 0:02:58]} 2. c4 {[%clk 0:03:00]}  g6 {[%clk 0:02:57]} 3. Nc3 {[%clk 0:03:00]}  d5 {[%clk 0:02:57]} 4. Nf3 {[%clk 0:02:58]}  Bg7 {[%clk 0:02:57]} 5. Bf4 {[%clk 0:02:58]}  c5 {[%clk 0:02:56]} 6. e3 {[%clk 0:02:58]}  cxd4 {[%clk 0:02:54]} 7. Nxd4 {[%clk 0:02:59]}  O-O {[%clk 0:02:53]} 8. Rc1 {[%clk 0:02:58]}  Nc6 {[%clk 0:02:47]} 9. cxd5 {[%clk 0:02:47]}  Nxd5 {[%clk 0:02:44]} 10. Nxd5 {[%clk 0:02:40]}  Qxd5 {[%clk 0:02:45]} 11. Nxc6 {[%clk 0:02:38]}  bxc6 {[%clk 0:02:46]} 12. Qxd5 {[%clk 0:02:32]}  cxd5 {[%clk 0:02:47]} 13. b3 {[%clk 0:02:32]}  e5 {[%clk 0:02:32]} 14. Bg3 {[%clk 0:02:31]}  Be6 {[%clk 0:02:32]} 15. Ba6 {[%clk 0:02:30]}  Rab8 {[%clk 0:02:16]} 16. O-O {[%clk 0:02:28]}  Rb6 {[%clk 0:02:15]} 17. Be2 {[%clk 0:02:25]}  a5 {[%clk 0:02:15]} 18. Rc5 {[%clk 0:02:21]}  Ra8 {[%clk 0:02:13]} 19. Rb1 {[%clk 0:01:54]}  Bf8 {[%clk 0:01:48]} 20. Rb5 {[%clk 0:01:50]}  Rxb5 {[%clk 0:01:45]} 21. Bxb5 {[%clk 0:01:51]}  f6 {[%clk 0:01:42]} 22. Rc1 {[%clk 0:01:51]}  Rc8 {[%clk 0:01:40]} 23. Rxc8 {[%clk 0:01:32]}  Bxc8 {[%clk 0:01:41]} 24. f3 {[%clk 0:01:32]}  Bc5 {[%clk 0:01:39]} 25. Bf2 {[%clk 0:01:26]}  Kf7 {[%clk 0:01:37]} 26. Kf1 {[%clk 0:01:25]}  Ke7 {[%clk 0:01:34]} 27. Ke2 {[%clk 0:01:20]}  Bd7 {[%clk 0:01:28]} 28. Bd3 {[%clk 0:01:11]}  Kd6 {[%clk 0:01:21]} 29. Be1 {[%clk 0:01:11]}  Bb4 {[%clk 0:01:21]} 30. Bh4 {[%clk 0:01:11]}  Ke6 {[%clk 0:01:18]} 31. e4 {[%clk 0:01:08]}  d4 {[%clk 0:01:14]} 32. Bc4+ {[%clk 0:01:07]}  Ke7 {[%clk 0:01:13]} 33. f4 {[%clk 0:01:08]}  exf4 {[%clk 0:01:10]} 34. e5 {[%clk 0:01:09]}  g5 {[%clk 0:01:10]} 35. exf6+ {[%clk 0:01:09]}  Kxf6 {[%clk 0:01:11]} 36. Bf2 {[%clk 0:01:09]}  Bc3 {[%clk 0:01:09]} 37. h3 {[%clk 0:01:01]}  Bf5 {[%clk 0:01:04]} 38. Bd3 {[%clk 0:01:00]}  Bxd3+ {[%clk 0:00:59]} 39. Kxd3 {[%clk 0:00:59]}  Ke5 {[%clk 0:00:59]} 40. a3 {[%clk 0:00:59]}  h5 {[%clk 0:00:59]} 41. Kc4 {[%clk 0:00:57]}  Ke4 {[%clk 0:00:40]} 42. b4 {[%clk 0:00:56]}  axb4 {[%clk 0:00:40]} 43. axb4 {[%clk 0:00:57]}  f3 {[%clk 0:00:38]} 44. g4 {[%clk 0:00:40]}  hxg4 {[%clk 0:00:35]} 45. hxg4 {[%clk 0:00:41]}  Bxb4 {[%clk 0:00:30]} 46. Kxb4 {[%clk 0:00:41]}  Kf4 {[%clk 0:00:23]} 47. Kc4 {[%clk 0:00:41]}  Kxg4 {[%clk 0:00:23]} 48. Kxd4 {[%clk 0:00:39]}  Kf4 {[%clk 0:00:23]} 1/2-1/2

[Event "December 19 Late 2023"]
[Site "https://www.chess.com"]
[Date "2023.12.19"]
[Round "4"]
[White "Dyachuk, Artem"]
[Black "Silva, Kaua Marques"]
[Result "1-0"]
[Board "45"]
[TimeControl "180+1"]
[WhiteFideId "34107924"]
[BlackFideId "22701168"]
[WhiteElo "2244"]
[BlackElo "2199"]
[WhiteTeam "UKR"]
[BlackTeam "BRA"]
[WhiteClock "0:00:05"]
[BlackClock "0:00:00"]

1. e4 {[%clk 0:03:00]}  e6 {[%clk 0:02:34]} 2. d4 {[%clk 0:03:00]}  d5 {[%clk 0:02:32]} 3. Nc3 {[%clk 0:03:00]}  Bb4 {[%clk 0:02:30]} 4. e5 {[%clk 0:03:00]}  c5 {[%clk 0:02:31]} 5. a3 {[%clk 0:03:00]}  Bxc3+ {[%clk 0:02:31]} 6. bxc3 {[%clk 0:03:00]}  Ne7 {[%clk 0:02:31]} 7. Qg4 {[%clk 0:02:59]}  cxd4 {[%clk 0:02:27]} 8. Qxg7 {[%clk 0:02:53]}  Rg8 {[%clk 0:02:26]} 9. Qxh7 {[%clk 0:02:53]}  Qa5 {[%clk 0:02:22]} 10. Ne2 {[%clk 0:02:50]}  Nbc6 {[%clk 0:02:21]} 11. h4 {[%clk 0:02:44]}  Bd7 {[%clk 0:02:21]} 12. h5 {[%clk 0:02:43]}  O-O-O {[%clk 0:02:18]} 13. Qd3 {[%clk 0:02:33]}  Nxe5 {[%clk 0:02:15]} 14. Qxd4 {[%clk 0:02:29]}  Nc4 {[%clk 0:02:12]} 15. h6 {[%clk 0:02:26]}  e5 {[%clk 0:02:09]} 16. Qh4 {[%clk 0:02:10]}  Ng6 {[%clk 0:02:00]} 17. Qf6 {[%clk 0:02:04]}  Qa4 {[%clk 0:01:45]} 18. h7 {[%clk 0:01:44]}  Rge8 {[%clk 0:01:38]} 19. Qxf7 {[%clk 0:01:12]}  Qxc2 {[%clk 0:01:34]} 20. f3 {[%clk 0:00:49]}  e4 {[%clk 0:01:17]} 21. Qxg6 {[%clk 0:00:34]}  Ba4 {[%clk 0:01:13]} 22. Qf5+ {[%clk 0:00:25]}  Bd7 {[%clk 0:00:55]} 23. Qg6 {[%clk 0:00:22]}  Ba4 {[%clk 0:00:48]} 24. Bf4 {[%clk 0:00:16]}  Qb2 {[%clk 0:00:43]} 25. Rd1 {[%clk 0:00:06]}  Bxd1 {[%clk 0:00:42]} 26. Qf5+ {[%clk 0:00:04]}  Rd7 {[%clk 0:00:00]} 27. h8=Q {[%clk 0:00:05]} 1-0

[Event "December 19 Late 2023"]
[Site "https://www.chess.com"]
[Date "2023.12.19"]
[Round "4"]
[White "Stojanovski, Sandi"]
[Black "Zeynalli, Rashad"]
[Result "0-1"]
[Board "50"]
[TimeControl "180+1"]
[WhiteFideId "1403249"]
[BlackFideId "13403320"]
[WhiteElo "2534"]
[BlackElo "2088"]
[WhiteTeam "DEN"]
[BlackTeam "AZE"]
[WhiteClock "0:00:00"]
[BlackClock "0:00:11"]

1. d3 {[%clk 0:03:00]}  d5 {[%clk 0:02:58]} 2. Nf3 {[%clk 0:03:00]}  Nf6 {[%clk 0:02:57]} 3. g3 {[%clk 0:03:01]}  e6 {[%clk 0:02:56]} 4. Bg2 {[%clk 0:03:01]}  Be7 {[%clk 0:02:56]} 5. O-O {[%clk 0:03:01]}  O-O {[%clk 0:02:57]} 6. c4 {[%clk 0:03:02]}  Nc6 {[%clk 0:02:54]} 7. Bf4 {[%clk 0:02:57]}  d4 {[%clk 0:02:51]} 8. Ne5 {[%clk 0:02:51]}  Nxe5 {[%clk 0:02:49]} 9. Bxe5 {[%clk 0:02:52]}  c5 {[%clk 0:02:48]} 10. Bxf6 {[%clk 0:02:51]}  Bxf6 {[%clk 0:02:48]} 11. b4 {[%clk 0:02:52]}  cxb4 {[%clk 0:02:46]} 12. a3 {[%clk 0:02:52]}  Be7 {[%clk 0:02:33]} 13. Qb3 {[%clk 0:02:50]}  a5 {[%clk 0:02:29]} 14. axb4 {[%clk 0:02:44]}  Bxb4 {[%clk 0:02:30]} 15. Na3 {[%clk 0:02:44]}  Qc7 {[%clk 0:01:56]} 16. Nc2 {[%clk 0:02:01]}  Bc5 {[%clk 0:01:43]} 17. Rfb1 {[%clk 0:01:57]}  Ra7 {[%clk 0:01:40]} 18. Na3 {[%clk 0:01:43]}  Bd7 {[%clk 0:01:12]} 19. Nb5 {[%clk 0:01:19]}  Bxb5 {[%clk 0:01:11]} 20. Qxb5 {[%clk 0:01:19]}  b6 {[%clk 0:01:09]} 21. Bf3 {[%clk 0:01:19]}  f5 {[%clk 0:01:08]} 22. Qc6 {[%clk 0:01:17]}  Qxc6 {[%clk 0:01:07]} 23. Bxc6 {[%clk 0:01:16]}  Rc7 {[%clk 0:01:05]} 24. Bf3 {[%clk 0:01:08]}  g5 {[%clk 0:01:05]} 25. h3 {[%clk 0:01:07]}  Kg7 {[%clk 0:01:05]} 26. Rb5 {[%clk 0:01:06]}  Kg6 {[%clk 0:01:04]} 27. Kg2 {[%clk 0:01:05]}  h5 {[%clk 0:01:04]} 28. g4 {[%clk 0:01:05]}  fxg4 {[%clk 0:00:58]} 29. hxg4 {[%clk 0:01:04]}  h4 {[%clk 0:00:58]} 30. Be4+ {[%clk 0:01:04]}  Kf6 {[%clk 0:00:58]} 31. Rbb1 {[%clk 0:00:51]}  Ra7 {[%clk 0:00:56]} 32. Ra4 {[%clk 0:00:50]}  Ke5 {[%clk 0:00:55]} 33. Rh1 {[%clk 0:00:49]}  Raf7 {[%clk 0:00:54]} 34. Bf3 {[%clk 0:00:43]}  Kd6 {[%clk 0:00:54]} 35. Ra2 {[%clk 0:00:40]}  Bb4 {[%clk 0:00:54]} 36. Rb1 {[%clk 0:00:35]}  Kc5 {[%clk 0:00:54]} 37. Ra4 {[%clk 0:00:32]}  b5 {[%clk 0:00:50]} 38. cxb5 {[%clk 0:00:31]}  Kxb5 {[%clk 0:00:51]} 39. Ra2 {[%clk 0:00:30]}  Rc7 {[%clk 0:00:51]} 40. Rba1 {[%clk 0:00:24]}  Rfc8 {[%clk 0:00:49]} 41. e3 {[%clk 0:00:21]}  dxe3 {[%clk 0:00:47]} 42. fxe3 {[%clk 0:00:21]}  Rc2+ {[%clk 0:00:48]} 43. Be2 {[%clk 0:00:18]}  a4 {[%clk 0:00:44]} 44. Kf3 {[%clk 0:00:11]}  Rxa2 {[%clk 0:00:36]} 45. Rxa2 {[%clk 0:00:11]}  Rf8+ {[%clk 0:00:35]} 46. Ke4 {[%clk 0:00:11]}  Rf2 {[%clk 0:00:31]} 47. d4+ {[%clk 0:00:12]}  Ka5 {[%clk 0:00:31]} 48. Bc4 {[%clk 0:00:11]}  Rf6 {[%clk 0:00:23]} 49. Ke5 {[%clk 0:00:10]}  Rf3 {[%clk 0:00:23]} 50. e4 {[%clk 0:00:09]}  h3 {[%clk 0:00:19]} 51. Bxe6 {[%clk 0:00:04]}  Bc3 {[%clk 0:00:17]} 52. Kd5 {[%clk 0:00:04]}  Rd3 {[%clk 0:00:16]} 53. Kc4 {[%clk 0:00:04]}  Rxd4+ {[%clk 0:00:15]} 54. Kxc3 {[%clk 0:00:04]}  Rxe4 {[%clk 0:00:16]} 55. Bd5 {[%clk 0:00:03]}  Rxg4 {[%clk 0:00:16]} 56. Bc6 {[%clk 0:00:03]}  Kb6 {[%clk 0:00:14]} 57. Bd5 {[%clk 0:00:03]}  Kc5 {[%clk 0:00:13]} 58. Bh1 {[%clk 0:00:02]}  Rg3+ {[%clk 0:00:13]} 59. Kb2 {[%clk 0:00:01]}  h2 {[%clk 0:00:13]} 60. Rxa4 {[%clk 0:00:01]}  Rg1 {[%clk 0:00:12]} 61. Ba8 {[%clk 0:00:01]}  g4 {[%clk 0:00:10]} 62. Rf4 {[%clk 0:00:01]}  g3 {[%clk 0:00:10]} 63. Rg4 {[%clk 0:00:01]}  g2 {[%clk 0:00:09]} 64. Bxg2 {[%clk 0:00:01]}  Rxg2+ {[%clk 0:00:09]} 65. Rxg2 {[%clk 0:00:02]}  h1=Q {[%clk 0:00:10]} 66. Rc2+ {[%clk 0:00:03]}  Kb4 {[%clk 0:00:10]} 67. Rc3 {[%clk 0:00:04]}  Qh8 {[%clk 0:00:10]} 68. Ka1 {[%clk 0:00:03]}  Qxc3+ {[%clk 0:00:11]} 69. Ka2 {[%clk 0:00:00]}  Qd2+ {[%clk 0:00:11]} 0-1

[Event "December 19 Late 2023"]
[Site "https://www.chess.com"]
[Date "2023.12.19"]
[Round "4"]
[White "Weetik, Vjacheslav"]
[Black "Senft, Sean"]
[Result "1-0"]
[Board "51"]
[TimeControl "180+1"]
[WhiteFideId "4153472"]
[BlackFideId "2044960"]
[WhiteElo "2469"]
[BlackElo "2005"]
[WhiteTeam "RUS"]
[BlackTeam "USA"]
[WhiteClock "0:00:07"]
[BlackClock "0:00:01"]

1. e4 {[%clk 0:02:54]}  c5 {[%clk 0:02:59]} 2. Nf3 {[%clk 0:02:54]}  d6 {[%clk 0:02:59]} 3. Bb5+ {[%clk 0:02:53]}  Bd7 {[%clk 0:03:00]} 4. Bxd7+ {[%clk 0:02:51]}  Nxd7 {[%clk 0:03:00]} 5. O-O {[%clk 0:02:51]}  Ngf6 {[%clk 0:03:01]} 6. Re1 {[%clk 0:02:51]}  e6 {[%clk 0:03:01]} 7. c4 {[%clk 0:02:51]}  Be7 {[%clk 0:03:01]} 8. d4 {[%clk 0:02:51]}  cxd4 {[%clk 0:03:01]} 9. Qxd4 {[%clk 0:02:52]}  Qb6 {[%clk 0:02:59]} 10. Qd2 {[%clk 0:02:37]}  O-O {[%clk 0:02:57]} 11. Nc3 {[%clk 0:02:36]}  Rac8 {[%clk 0:02:56]} 12. b3 {[%clk 0:02:37]}  Ne5 {[%clk 0:02:49]} 13. Nd4 {[%clk 0:02:31]}  Nc6 {[%clk 0:02:42]} 14. Nf3 {[%clk 0:02:24]}  Ne5 {[%clk 0:02:42]} 15. Qe2 {[%clk 0:02:20]}  Nxf3+ {[%clk 0:02:30]} 16. Qxf3 {[%clk 0:02:20]}  Nd7 {[%clk 0:02:30]} 17. Be3 {[%clk 0:02:15]}  Qa5 {[%clk 0:02:30]} 18. Bd2 {[%clk 0:02:09]}  Bf6 {[%clk 0:02:19]} 19. Rad1 {[%clk 0:02:04]}  Ne5 {[%clk 0:02:18]} 20. Qg3 {[%clk 0:02:00]}  Qa6 {[%clk 0:02:08]} 21. Bg5 {[%clk 0:01:48]}  Bxg5 {[%clk 0:02:03]} 22. Qxg5 {[%clk 0:01:47]}  h6 {[%clk 0:01:57]} 23. Qe3 {[%clk 0:01:43]}  Rfd8 {[%clk 0:01:54]} 24. Rd2 {[%clk 0:01:30]}  Rd7 {[%clk 0:01:36]} 25. Red1 {[%clk 0:01:28]}  Rcd8 {[%clk 0:01:37]} 26. h3 {[%clk 0:01:28]}  Nc6 {[%clk 0:01:24]} 27. Nb5 {[%clk 0:01:26]}  Ne7 {[%clk 0:01:21]} 28. Qxa7 {[%clk 0:01:24]}  Qc6 {[%clk 0:01:11]} 29. Qa3 {[%clk 0:01:21]}  Qxe4 {[%clk 0:01:02]} 30. Nxd6 {[%clk 0:01:10]}  Qf4 {[%clk 0:01:01]} 31. c5 {[%clk 0:00:56]}  Nf5 {[%clk 0:00:47]} 32. Rd3 {[%clk 0:00:42]}  e5 {[%clk 0:00:33]} 33. b4 {[%clk 0:00:29]}  e4 {[%clk 0:00:31]} 34. Rd5 {[%clk 0:00:26]}  g6 {[%clk 0:00:20]} 35. Nxf5 {[%clk 0:00:17]}  Rxd5 {[%clk 0:00:05]} 36. Rxd5 {[%clk 0:00:14]}  Rxd5 {[%clk 0:00:04]} 37. Ne7+ {[%clk 0:00:14]}  Kh7 {[%clk 0:00:03]} 38. Nxd5 {[%clk 0:00:15]}  Qe5 {[%clk 0:00:01]} 39. Ne3 {[%clk 0:00:06]}  Qa1+ {[%clk 0:00:02]} 40. Kh2 {[%clk 0:00:07]}  Qe5+ {[%clk 0:00:03]} 41. Kg1 {[%clk 0:00:07]}  f5 {[%clk 0:00:03]} 42. Qb3 {[%clk 0:00:07]}  f4 {[%clk 0:00:03]} 43. Qf7+ {[%clk 0:00:07]}  Kh8 {[%clk 0:00:04]} 44. Nd5 {[%clk 0:00:06]}  f3 {[%clk 0:00:03]} 45. Qf8+ {[%clk 0:00:07]}  Kh7 {[%clk 0:00:01]} 46. Nf6+ {[%clk 0:00:07]} 1-0

[Event "December 19 Late 2023"]
[Site "https://www.chess.com"]
[Date "2023.12.19"]
[Round "4"]
[White "Vafin, Ayrat"]
[Black "Leiva, Gianmarco"]
[Result "1-0"]
[Board "52"]
[TimeControl "180+1"]
[WhiteFideId "4146530"]
[BlackFideId "3804399"]
[WhiteElo "2317"]
[BlackElo "2338"]
[WhiteTeam "RUS"]
[BlackTeam "PER"]
[WhiteClock "0:00:05"]
[BlackClock "0:00:00"]

1. Nf3 {[%clk 0:03:00]}  Nf6 {[%clk 0:02:56]} 2. g3 {[%clk 0:03:01]}  d5 {[%clk 0:02:43]} 3. Bg2 {[%clk 0:03:01]}  Bg4 {[%clk 0:02:43]} 4. d4 {[%clk 0:02:58]}  Nbd7 {[%clk 0:02:42]} 5. O-O {[%clk 0:02:58]}  c6 {[%clk 0:02:42]} 6. Nbd2 {[%clk 0:02:58]}  e6 {[%clk 0:02:42]} 7. Re1 {[%clk 0:02:58]}  Be7 {[%clk 0:02:43]} 8. e4 {[%clk 0:02:58]}  O-O {[%clk 0:02:40]} 9. c3 {[%clk 0:02:59]}  Bh5 {[%clk 0:02:35]} 10. Qb3 {[%clk 0:02:58]}  Qb6 {[%clk 0:02:34]} 11. exd5 {[%clk 0:02:54]}  cxd5 {[%clk 0:02:32]} 12. Nf1 {[%clk 0:02:53]}  Ne4 {[%clk 0:02:27]} 13. N3d2 {[%clk 0:02:42]}  Nef6 {[%clk 0:02:12]} 14. Nf3 {[%clk 0:02:34]}  a5 {[%clk 0:02:02]} 15. Ne5 {[%clk 0:02:31]}  a4 {[%clk 0:01:54]} 16. Qc2 {[%clk 0:02:16]}  Nxe5 {[%clk 0:01:53]} 17. dxe5 {[%clk 0:02:13]}  Bg6 {[%clk 0:01:54]} 18. Qe2 {[%clk 0:02:00]}  Ne4 {[%clk 0:01:40]} 19. Be3 {[%clk 0:01:58]}  Bc5 {[%clk 0:01:40]} 20. Bxc5 {[%clk 0:01:56]}  Nxc5 {[%clk 0:01:39]} 21. Rad1 {[%clk 0:01:51]}  Rfc8 {[%clk 0:01:19]} 22. Rd4 {[%clk 0:01:50]}  a3 {[%clk 0:01:20]} 23. b3 {[%clk 0:01:42]}  Nxb3 {[%clk 0:01:04]} 24. Rb4 {[%clk 0:01:42]}  Qa5 {[%clk 0:00:47]} 25. Rxb3 {[%clk 0:01:42]}  Rxc3 {[%clk 0:00:48]} 26. Rxc3 {[%clk 0:01:32]}  Qxc3 {[%clk 0:00:49]} 27. Qd2 {[%clk 0:01:32]}  Qxd2 {[%clk 0:00:44]} 28. Nxd2 {[%clk 0:01:33]}  Rc8 {[%clk 0:00:45]} 29. Nb1 {[%clk 0:01:15]}  Ra8 {[%clk 0:00:43]} 30. Bf1 {[%clk 0:01:10]}  Ra4 {[%clk 0:00:42]} 31. Rc1 {[%clk 0:01:06]}  h5 {[%clk 0:00:42]} 32. Nc3 {[%clk 0:00:41]}  Rb4 {[%clk 0:00:40]} 33. Nb5 {[%clk 0:00:37]}  h4 {[%clk 0:00:28]} 34. Nxa3 {[%clk 0:00:35]}  Ra4 {[%clk 0:00:26]} 35. Rc3 {[%clk 0:00:33]}  d4 {[%clk 0:00:25]} 36. Rb3 {[%clk 0:00:32]}  Be4 {[%clk 0:00:23]} 37. Bc4 {[%clk 0:00:13]}  h3 {[%clk 0:00:19]} 38. f3 {[%clk 0:00:12]}  Bc6 {[%clk 0:00:18]} 39. Kf2 {[%clk 0:00:12]}  g5 {[%clk 0:00:15]} 40. g4 {[%clk 0:00:13]}  Ra5 {[%clk 0:00:08]} 41. Kg3 {[%clk 0:00:09]}  Rxe5 {[%clk 0:00:07]} 42. Nc2 {[%clk 0:00:10]}  Rc5 {[%clk 0:00:06]} 43. Bd3 {[%clk 0:00:08]}  Bd5 {[%clk 0:00:03]} 44. Ra3 {[%clk 0:00:09]}  e5 {[%clk 0:00:03]} 45. Nb4 {[%clk 0:00:08]}  Be6 {[%clk 0:00:02]} 46. Be4 {[%clk 0:00:09]}  b6 {[%clk 0:00:02]} 47. Nd3 {[%clk 0:00:08]}  Rc3 {[%clk 0:00:02]} 48. Rxc3 {[%clk 0:00:04]}  dxc3 {[%clk 0:00:02]} 49. Nxe5 {[%clk 0:00:04]}  Bxa2 {[%clk 0:00:02]} 50. Bc2 {[%clk 0:00:05]}  b5 {[%clk 0:00:02]} 51. Nc6 {[%clk 0:00:05]}  Bc4 {[%clk 0:00:01]} 52. Kxh3 {[%clk 0:00:04]}  f6 {[%clk 0:00:02]} 53. Kg3 {[%clk 0:00:03]}  Kf7 {[%clk 0:00:01]} 54. f4 {[%clk 0:00:04]}  Ke6 {[%clk 0:00:01]} 55. fxg5 {[%clk 0:00:04]}  fxg5 {[%clk 0:00:02]} 56. h4 {[%clk 0:00:05]}  gxh4+ {[%clk 0:00:02]} 57. Kxh4 {[%clk 0:00:05]}  Kd6 {[%clk 0:00:03]} 58. Nb4 {[%clk 0:00:05]}  Kc5 {[%clk 0:00:03]} 59. Na6+ {[%clk 0:00:06]}  Kd4 {[%clk 0:00:02]} 60. g5 {[%clk 0:00:05]}  Ke3 {[%clk 0:00:00]} 61. g6 {[%clk 0:00:05]} 1-0

[Event "December 19 Late 2023"]
[Site "https://www.chess.com"]
[Date "2023.12.19"]
[Round "4"]
[White "Boyer, Mahel"]
[Black "Srdanovic, Jovana"]
[Result "1-0"]
[Board "54"]
[TimeControl "180+1"]
[WhiteFideId "45102422"]
[BlackFideId "954810"]
[WhiteElo "2449"]
[BlackElo "2123"]
[WhiteTeam "FRA"]
[BlackTeam "SRB"]
[WhiteClock "0:01:33"]
[BlackClock "0:00:30"]

1. Nf3 {[%clk 0:03:00]}  d5 {[%clk 0:02:59]} 2. e3 {[%clk 0:03:00]}  Nf6 {[%clk 0:02:59]} 3. c4 {[%clk 0:03:01]}  c6 {[%clk 0:02:57]} 4. Nc3 {[%clk 0:02:59]}  e6 {[%clk 0:02:57]} 5. b3 {[%clk 0:03:00]}  Nbd7 {[%clk 0:02:55]} 6. Qc2 {[%clk 0:02:59]}  Bd6 {[%clk 0:02:55]} 7. Bb2 {[%clk 0:02:59]}  O-O {[%clk 0:02:55]} 8. Be2 {[%clk 0:02:59]}  a6 {[%clk 0:02:55]} 9. Rg1 {[%clk 0:02:59]}  e5 {[%clk 0:02:54]} 10. g4 {[%clk 0:02:58]}  e4 {[%clk 0:02:23]} 11. g5 {[%clk 0:02:34]}  Ng4 {[%clk 0:02:08]} 12. Rxg4 {[%clk 0:02:27]}  exf3 {[%clk 0:02:07]} 13. Bd3 {[%clk 0:02:26]}  g6 {[%clk 0:02:03]} 14. Rg1 {[%clk 0:02:17]}  Bxh2 {[%clk 0:01:34]} 15. Rh1 {[%clk 0:02:16]}  Be5 {[%clk 0:01:34]} 16. cxd5 {[%clk 0:02:11]}  cxd5 {[%clk 0:01:27]} 17. Nxd5 {[%clk 0:02:12]}  Qxg5 {[%clk 0:01:20]} 18. O-O-O {[%clk 0:02:00]}  Bxb2+ {[%clk 0:01:18]} 19. Qxb2 {[%clk 0:02:01]}  Ne5 {[%clk 0:00:57]} 20. Bc2 {[%clk 0:01:50]}  Ng4 {[%clk 0:00:51]} 21. Rxh7 {[%clk 0:01:35]}  Kxh7 {[%clk 0:00:36]} 22. Rh1+ {[%clk 0:01:35]}  Nh6 {[%clk 0:00:36]} 23. Nf6+ {[%clk 0:01:35]}  Kh8 {[%clk 0:00:30]} 24. Ne4+ {[%clk 0:01:33]} 1-0

[Event "December 19 Late 2023"]
[Site "https://www.chess.com"]
[Date "2023.12.19"]
[Round "4"]
[White "Ang, Ern Jie Anderson"]
[Black "Molenda, Marcin"]
[Result "1-0"]
[Board "55"]
[TimeControl "180+1"]
[WhiteFideId "5736200"]
[BlackFideId "1173065"]
[WhiteElo "1941"]
[BlackElo "2286"]
[WhiteTeam "MAS"]
[BlackTeam "POL"]
[WhiteClock "0:00:11"]
[BlackClock "0:00:01"]

1. d4 {[%clk 0:03:00]}  Nf6 {[%clk 0:02:58]} 2. c4 {[%clk 0:03:00]}  g6 {[%clk 0:02:57]} 3. g3 {[%clk 0:03:00]}  c5 {[%clk 0:02:55]} 4. d5 {[%clk 0:02:59]}  Bg7 {[%clk 0:02:53]} 5. Bg2 {[%clk 0:02:59]}  O-O {[%clk 0:02:54]} 6. Nf3 {[%clk 0:02:58]}  e6 {[%clk 0:02:54]} 7. Nc3 {[%clk 0:02:58]}  exd5 {[%clk 0:02:55]} 8. cxd5 {[%clk 0:02:59]}  d6 {[%clk 0:02:55]} 9. O-O {[%clk 0:02:59]}  a6 {[%clk 0:02:55]} 10. a4 {[%clk 0:02:58]}  Re8 {[%clk 0:02:56]} 11. Bf4 {[%clk 0:02:58]}  Ne4 {[%clk 0:02:52]} 12. Nxe4 {[%clk 0:02:55]}  Rxe4 {[%clk 0:02:53]} 13. Nd2 {[%clk 0:02:55]}  Rb4 {[%clk 0:02:53]} 14. b3 {[%clk 0:02:55]}  Bg4 {[%clk 0:02:30]} 15. Rc1 {[%clk 0:02:31]}  b5 {[%clk 0:02:25]} 16. h3 {[%clk 0:02:29]}  g5 {[%clk 0:02:23]} 17. Be3 {[%clk 0:02:25]}  Bf5 {[%clk 0:02:22]} 18. Nf3 {[%clk 0:02:12]}  h6 {[%clk 0:02:20]} 19. Bd2 {[%clk 0:02:04]}  Re4 {[%clk 0:02:18]} 20. Bc3 {[%clk 0:02:04]}  Nd7 {[%clk 0:02:13]} 21. Bxg7 {[%clk 0:01:47]}  Kxg7 {[%clk 0:02:14]} 22. Nd2 {[%clk 0:01:47]}  Rb4 {[%clk 0:02:01]} 23. e4 {[%clk 0:01:47]}  Bg6 {[%clk 0:01:56]} 24. f4 {[%clk 0:01:47]}  Qf6 {[%clk 0:01:40]} 25. Kh2 {[%clk 0:01:31]}  Re8 {[%clk 0:01:32]} 26. Qg4 {[%clk 0:01:30]}  Re7 {[%clk 0:01:21]} 27. axb5 {[%clk 0:01:21]}  axb5 {[%clk 0:01:16]} 28. Ra1 {[%clk 0:01:19]}  Rd4 {[%clk 0:01:05]} 29. Ra2 {[%clk 0:00:54]}  c4 {[%clk 0:01:01]} 30. bxc4 {[%clk 0:00:53]}  bxc4 {[%clk 0:01:02]} 31. h4 {[%clk 0:00:46]}  c3 {[%clk 0:00:57]} 32. Nf3 {[%clk 0:00:42]}  Rdxe4 {[%clk 0:00:53]} 33. hxg5 {[%clk 0:00:41]}  hxg5 {[%clk 0:00:50]} 34. Nxg5 {[%clk 0:00:41]}  Re3 {[%clk 0:00:38]} 35. f5 {[%clk 0:00:25]}  Ne5 {[%clk 0:00:36]} 36. Qh4 {[%clk 0:00:26]}  Bxf5 {[%clk 0:00:19]} 37. Ra8 {[%clk 0:00:25]}  Ng4+ {[%clk 0:00:06]} 38. Kg1 {[%clk 0:00:19]}  Nh6 {[%clk 0:00:06]} 39. g4 {[%clk 0:00:19]}  Re2 {[%clk 0:00:02]} 40. gxf5 {[%clk 0:00:17]}  R7e3 {[%clk 0:00:01]} 41. Ne4 {[%clk 0:00:10]}  c2 {[%clk 0:00:01]} 42. Qxf6+ {[%clk 0:00:10]}  Kh7 {[%clk 0:00:01]} 43. Ng5# {[%clk 0:00:11]} 1-0

[Event "December 19 Late 2023"]
[Site "https://www.chess.com"]
[Date "2023.12.19"]
[Round "4"]
[White "Annaberdiyev, Meylis"]
[Black "Serban, Cristian-Stefan"]
[Result "1-0"]
[Board "57"]
[TimeControl "180+1"]
[WhiteFideId "14000563"]
[BlackFideId "1241443"]
[WhiteElo "2405"]
[BlackElo "2040"]
[WhiteTeam "TKM"]
[BlackTeam "ROU"]
[WhiteClock "0:00:50"]
[BlackClock "0:00:00"]

1. e4 {[%clk 0:03:00]}  c5 {[%clk 0:03:00]} 2. Nf3 {[%clk 0:02:59]}  d6 {[%clk 0:03:00]} 3. c3 {[%clk 0:02:57]}  Nf6 {[%clk 0:02:59]} 4. Be2 {[%clk 0:02:56]}  Nc6 {[%clk 0:02:55]} 5. d4 {[%clk 0:02:52]}  cxd4 {[%clk 0:02:52]} 6. cxd4 {[%clk 0:02:51]}  e6 {[%clk 0:02:46]} 7. Nc3 {[%clk 0:02:50]}  Be7 {[%clk 0:02:43]} 8. O-O {[%clk 0:02:47]}  O-O {[%clk 0:02:43]} 9. Bd3 {[%clk 0:02:44]}  a6 {[%clk 0:02:40]} 10. Qe2 {[%clk 0:02:43]}  b5 {[%clk 0:02:40]} 11. e5 {[%clk 0:02:41]}  dxe5 {[%clk 0:02:32]} 12. dxe5 {[%clk 0:02:41]}  Nd5 {[%clk 0:02:32]} 13. Nxd5 {[%clk 0:02:40]}  exd5 {[%clk 0:02:31]} 14. h3 {[%clk 0:02:11]}  Be6 {[%clk 0:02:29]} 15. Bd2 {[%clk 0:02:04]}  Qb6 {[%clk 0:02:21]} 16. Rac1 {[%clk 0:02:03]}  h6 {[%clk 0:02:14]} 17. Bf4 {[%clk 0:01:36]}  Rfc8 {[%clk 0:01:59]} 18. a3 {[%clk 0:01:30]}  Nd4 {[%clk 0:01:25]} 19. Qe3 {[%clk 0:01:17]}  Nxf3+ {[%clk 0:01:08]} 20. Qxf3 {[%clk 0:01:18]}  Rxc1 {[%clk 0:01:06]} 21. Rxc1 {[%clk 0:01:17]}  Bf8 {[%clk 0:00:43]} 22. Be3 {[%clk 0:01:14]}  Qd8 {[%clk 0:00:41]} 23. Bd4 {[%clk 0:01:07]}  Rc8 {[%clk 0:00:40]} 24. Rd1 {[%clk 0:01:06]}  Bc5 {[%clk 0:00:39]} 25. Qe3 {[%clk 0:01:03]}  Bxd4 {[%clk 0:00:37]} 26. Qxd4 {[%clk 0:01:04]}  Qc7 {[%clk 0:00:37]} 27. f4 {[%clk 0:01:04]}  Qc5 {[%clk 0:00:36]} 28. Qxc5 {[%clk 0:01:03]}  Rxc5 {[%clk 0:00:37]} 29. Kf2 {[%clk 0:01:00]}  g6 {[%clk 0:00:19]} 30. Ke3 {[%clk 0:01:00]}  Kf8 {[%clk 0:00:19]} 31. Rd2 {[%clk 0:01:00]}  Ke7 {[%clk 0:00:19]} 32. Rc2 {[%clk 0:01:00]}  Rxc2 {[%clk 0:00:18]} 33. Bxc2 {[%clk 0:01:00]}  Kd7 {[%clk 0:00:19]} 34. Kd4 {[%clk 0:01:00]}  Kc6 {[%clk 0:00:19]} 35. b4 {[%clk 0:01:01]}  h5 {[%clk 0:00:19]} 36. h4 {[%clk 0:00:54]}  Kb6 {[%clk 0:00:01]} 37. Bb3 {[%clk 0:00:53]}  Kc6 {[%clk 0:00:02]} 38. Bd1 {[%clk 0:00:52]}  Kb6 {[%clk 0:00:02]} 39. Be2 {[%clk 0:00:52]}  Kc6 {[%clk 0:00:02]} 40. Bf3 {[%clk 0:00:53]}  Kb6 {[%clk 0:00:01]} 41. Bxd5 {[%clk 0:00:52]}  a5 {[%clk 0:00:01]} 42. g3 {[%clk 0:00:50]}  axb4 {[%clk 0:00:00]} 43. axb4 {[%clk 0:00:50]} 1-0